bitfinex-derivatives/quotes_SOLF0:USTF0_20250919
["timestamp","ask_amount","ask_price","bid_price","bid_amount"]
[1758310709069,0.02655127,237.68,237.64,3.7851]
[1758310709267,0.02655127,237.68,237.66,3.7849]
[1758310709463,7.08,237.77,237.67,6.79]
[1758310709862,8.56018941,237.77,237.67,6.79]
[1758310710573,8.56018941,237.77,237.68,10.5745]
[1758310710574,7.08,237.77,237.68,10.5745]
[1758310710773,7.08,237.77,237.7,0.02877779]
[1758310714775,10.8633,237.77,237.7,0.02877779]
[1758310717377,7.08,237.77,237.7,0.02877779]
[1758310718670,7.08,237.77,237.7,3.81297779]
[1758310718873,127.7827,237.8,237.71,6.79]
[1758310719179,7.08,237.79,237.71,6.79]
[1758310721775,7.08,237.79,237.73,3.7838]
[1758310722175,124.0,237.8,237.74,6.79]
[1758310722473,124.0,237.8,237.75,3.7834]
[1758310722778,124.0,237.8,237.76,6.79]
[1758310723071,124.0,237.8,237.75,3.81156313]
[1758310723276,7.08,237.79,237.75,6.81816313]
[1758310725974,7.08,237.79,237.75,0.02816313]
[1758310726174,7.08,237.79,237.76,6.79]
[1758310726372,124.0,237.8,237.75,3.81146313]
[1758310726675,124.0,237.8,237.76,6.79]
[1758310727080,124.0,237.8,237.75,3.81146313]
[1758310727679,124.0,237.8,237.76,6.79]
[1758310727877,124.0,237.8,237.78,6.79]
[1758310729379,7.08,237.79,237.75,0.02816313]
[1758310729583,7.08,237.79,237.75,10.60156313]
[1758310729882,7.08,237.79,237.75,3.81156313]
[1758310730088,7.08,237.79,237.75,10.60156313]
[1758310731573,124.0,237.8,237.75,3.81156313]
[1758310732385,7.08,237.79,237.75,3.81156313]
[1758310732586,124.0,237.8,237.75,3.81156313]
[1758310733192,7.08,237.79,237.75,3.81156313]
[1758310733379,124.0,237.8,237.75,3.81156313]
[1758310733580,7.08,237.79,237.76,6.79]
[1758310734581,124.0,237.8,237.75,0.02816313]
[1758310734882,7.08,237.79,237.75,0.02816313]
[1758310735687,124.0,237.8,237.75,0.02816313]
[1758310735883,127.7828,237.8,237.75,0.02816313]
[1758310736490,7.08,237.79,237.75,0.02816313]
[1758310736882,127.7828,237.8,237.75,0.02816313]
[1758310737086,7.08,237.79,237.75,0.02816313]
[1758310737279,127.7828,237.8,237.75,0.02816313]
[1758310737890,8.56018941,237.79,237.75,0.02816313]
[1758310738884,3.7831,237.77,237.75,0.02816313]
[1758310739094,6.84,237.76,237.75,0.02816313]
[1758310745611,8.32018941,237.76,237.75,0.02816313]
[1758310746112,8.32018941,237.76,237.67,3.7847]
[1758310746306,1.48018941,237.7,237.6,12.58335453]
[1758310746605,102.44,237.76,237.59,6.99]
[1758310746606,7.06,237.69,237.61,102.48]
[1758310747705,7.06,237.69,237.6,3.7857]
[1758310747906,0.02690254,237.67,237.6,106.2657]
[1758310748499,7.06,237.66,237.59,6.99]
[1758310748706,7.06,237.66,237.6,102.48]
[1758310748906,7.06,237.66,237.59,109.47]
[1758310749207,7.06,237.66,237.59,109.49]
[1758310749510,7.06,237.66,237.59,109.47]
[1758310750011,7.06,237.66,237.59,6.99]
[1758310750211,7.06,237.66,237.59,109.47]
[1758310750412,0.02690254,237.67,237.6,102.48]
[1758310750709,0.02690254,237.67,237.61,6.99]
[1758310752513,3.81170254,237.67,237.61,6.99]
[1758310752918,1.48018941,237.65,237.58,102.48]
[1758310753613,1.48018941,237.65,237.58,102.5]
[1758310754703,7.06,237.61,237.56,318.0]
[1758310754909,1.48018941,237.62,237.56,318.0]
[1758310755507,7.06,237.61,237.56,318.0]
[1758310755711,1.48018941,237.62,237.56,318.0]
[1758310755909,0.02793026,237.61,237.56,318.0]
[1758310756104,7.06,237.6,237.56,318.0]
[1758310757416,0.02793026,237.61,237.55,102.52]
[1758310757617,0.02793026,237.61,237.59,6.99]
[1758310757812,0.02793026,237.61,237.6,109.55]
[1758310758017,0.02793026,237.61,237.55,12.25668941]
[1758310758314,0.02793026,237.61,237.56,102.56]
[1758310758518,0.02793026,237.61,237.57,6.99]
[1758310759010,0.02793026,237.61,237.56,102.56]
[1758310759206,0.02793026,237.61,237.58,1.48018941]
[1758310759717,0.02793026,237.61,237.59,6.99]
[1758310759911,0.02793026,237.61,237.58,1.48018941]
[1758310760419,0.02793026,237.61,237.6,3.7858]
[1758310760607,8.54018941,237.73,237.61,6.99]
[1758310760806,7.06,237.73,237.63,1.48018941]
[1758310761414,7.06,237.73,237.63,8.47018941]
[1758310761810,3.7841,237.72,237.66,0.03045478]
[1758310764417,1.48018941,237.68,237.59,6.99]
[1758310764620,1.48018941,237.65,237.59,6.99]
[1758310764815,1.48018941,237.65,237.55,6.99]
[1758310765123,7.06,237.64,237.56,44.22]
[1758310765620,7.06,237.64,237.56,102.7]
[1758310765821,0.0279389,237.62,237.56,106.4865]
[1758310766522,0.0279389,237.62,237.57,102.7]
[1758310766715,0.0279389,237.62,237.58,6.99]
[1758310768917,0.0279389,237.62,237.57,102.7]
[1758310769118,0.0279389,237.62,237.58,6.94]
[1758310769515,0.0279389,237.62,237.57,64.64]
[1758310770124,0.0279389,237.62,237.58,6.94]
[1758310770426,0.0279389,237.62,237.57,64.64]
[1758310770620,7.0579389,237.62,237.58,6.94]
[1758310775430,0.0279389,237.62,237.56,6.94]
[1758310776030,0.0279389,237.62,237.58,6.94]
[1758310776525,0.0279389,237.62,237.59,3.7859]
[1758310777634,0.0279389,237.62,237.6,6.94]
[1758310777833,0.0279389,237.62,237.59,3.7859]
[1758310778329,0.0279389,237.62,237.6,6.94]
[1758310779831,0.0279389,237.62,237.59,3.7859]
[1758310780234,0.0279389,237.62,237.6,6.94]
[1758310780435,0.0279389,237.62,237.61,6.94]
[1758310788737,2.31513201,237.74,237.64,6.94]
[1758310788738,10.814,237.72,237.64,6.94]
[1758310788940,10.814,237.72,237.64,109.46]
[1758310789945,3.7842,237.71,237.66,0.02854306]
[1758310790144,7.03503176,237.74,237.66,0.02854306]
[1758310790443,7.03,237.73,237.66,0.02854306]
[1758310790845,3.7842,237.71,237.66,0.02854306]
[1758310791146,7.03,237.7,237.66,0.02854306]
[1758310792841,3.7842,237.71,237.66,0.02854306]
[1758310793434,3.7844,237.7,237.66,0.02854306]
[1758310793847,7.03,237.69,237.66,0.02854306]
[1758310794342,3.7844,237.7,237.66,0.02854306]
[1758310794738,7.03,237.69,237.66,0.02854306]
[1758310794947,3.7844,237.7,237.66,0.02854306]
[1758310795142,7.03,237.69,237.66,0.02854306]
[1758310795342,3.7844,237.7,237.66,0.02854306]
[1758310795547,7.03,237.69,237.66,0.02854306]
[1758310795738,3.7844,237.7,237.66,0.02854306]
[1758310796145,7.03,237.69,237.66,0.02854306]
[1758310796345,3.7844,237.7,237.66,0.02854306]
[1758310796744,7.03,237.69,237.66,0.02854306]
[1758310797248,3.7844,237.7,237.66,0.02854306]
[1758310797750,7.03,237.69,237.66,0.02854306]
[1758310798047,3.7844,237.7,237.66,0.02854306]
[1758310798449,6.8,237.69,237.66,0.02854306]
[1758310799351,3.7844,237.7,237.66,0.02854306]
[1758310799851,7.25,237.69,237.66,0.02854306]
[1758310800040,3.7844,237.7,237.66,0.02854306]
[1758310800246,7.25,237.69,237.66,0.02854306]
[1758310800547,11.0339,237.72,237.66,0.02854306]
[1758310803146,7.25,237.72,237.66,0.02854306]
[1758310804867,11.034,237.72,237.66,0.02854306]
[1758310805257,7.25,237.72,237.66,0.02854306]
[1758310805554,7.25,237.69,237.66,0.02854306]
[1758310805761,11.96989975,237.69,237.56,6.75]
[1758310805952,7.25,237.64,237.56,6.75]
[1758310806759,7.25,237.68,237.56,6.75]
[1758310806959,0.02758075,237.62,237.56,6.75]
[1758310807661,0.02758075,237.62,237.59,6.75]
[1758310808061,0.02758075,237.62,237.58,3.786]
[1758310808355,0.02758075,237.62,237.55,113.0365]
[1758310808661,0.02758075,237.62,237.55,10.5365]
[1758310813467,7.25,237.61,237.51,6.75]
[1758310814869,11.0358,237.61,237.51,6.75]
[1758310815565,7.25,237.61,237.53,6.75]
[1758310816869,7.25,237.61,237.53,10.5368]
[1758310817364,7.25,237.61,237.55,10.5366]
[1758310820773,7.25,237.61,237.55,6.75]
[1758310824066,7.25,237.61,237.54,3.7867]
[1758310824973,7.25,237.61,237.52,102.52]
[1758310825978,7.25,237.61,237.52,106.307]
[1758310827979,7.25,237.61,237.53,6.75]
[1758310828279,7.25,237.61,237.53,10.5368]
[1758310830378,0.02758075,237.62,237.53,6.75]
[1758310830882,0.02758075,237.62,237.58,6.61]
[1758310831080,0.02758075,237.62,237.57,3.7862]
[1758310831981,0.02758075,237.62,237.58,6.61]
[1758310832481,0.02758075,237.62,237.57,3.7862]
[1758310833178,0.02758075,237.62,237.58,6.61]
[1758310833681,0.02758075,237.62,237.57,3.7862]
[1758310834876,0.02758075,237.62,237.58,6.61]
[1758310835277,0.02758075,237.62,237.57,3.7862]
[1758310835478,0.02758075,237.62,237.58,6.61]
[1758310836178,0.02758075,237.62,237.57,3.7862]
[1758310836777,0.02758075,237.62,237.58,6.61]
[1758310836977,0.02758075,237.62,237.57,3.7862]
[1758310837172,0.02758075,237.62,237.58,6.61]
[1758310837572,0.02758075,237.62,237.57,3.7862]
[1758310838471,0.02758075,237.62,237.58,6.61]
[1758310838779,0.02758075,237.62,237.57,3.7862]
[1758310838979,0.02758075,237.62,237.58,6.61]
[1758310839176,0.02758075,237.62,237.57,3.7862]
[1758310839384,0.02758075,237.62,237.58,6.61]
[1758310839871,0.02758075,237.62,237.57,3.7862]
[1758310840072,6.66758075,237.62,237.58,6.61]
[1758310840289,6.66758075,237.62,237.54,3.7867]
[1758310840479,6.66758075,237.62,237.55,6.61]
[1758310841882,6.66758075,237.62,237.56,6.61]
[1758310844185,0.02758075,237.62,237.53,8.0915389]
[1758310844883,0.02758075,237.62,237.58,6.61]
[1758310845186,0.02758075,237.62,237.57,3.7862]
[1758310845987,0.02758075,237.62,237.58,6.61]
[1758310846390,0.02758075,237.62,237.57,3.7862]
[1758310846786,0.02758075,237.62,237.58,6.61]
[1758310846987,0.02758075,237.62,237.57,3.7862]
[1758310847181,0.02758075,237.62,237.58,6.61]
[1758310847386,0.02758075,237.62,237.57,3.7862]
[1758310847584,0.02758075,237.62,237.54,10.3967]
[1758310847788,6.64,237.61,237.54,10.3967]
[1758310847983,1.4815389,237.6,237.54,10.3967]
[1758310850381,4.71989975,237.6,237.54,10.3967]
[1758310850586,12.84143865,237.61,237.54,10.3967]
[1758310850892,12.84143865,237.61,237.55,10.3965]
[1758310851800,11.35989975,237.61,237.55,10.3965]
[1758310852289,11.35989975,237.61,237.56,6.61]
[1758310852787,11.35989975,237.61,237.56,3.7864]
[1758310852994,4.71989975,237.61,237.56,3.7864]
[1758310853185,4.71989975,237.61,237.57,6.61]
[1758310853995,4.71989975,237.61,237.56,3.7864]
[1758310854190,4.71989975,237.61,237.57,6.61]
[1758310854386,4.71989975,237.61,237.56,3.7864]
[1758310854588,4.71989975,237.61,237.57,6.61]
[1758310854787,0.02758075,237.62,237.53,6.61]
[1758310855798,0.02758075,237.62,237.56,3.7863]
[1758310855993,6.66758075,237.62,237.56,3.7863]
[1758310856193,6.66758075,237.62,237.57,6.61]
[1758310856395,6.66758075,237.62,237.56,3.7863]
[1758310856594,6.66758075,237.62,237.57,6.61]
[1758310856795,6.66758075,237.62,237.56,3.7863]
[1758310856994,6.66758075,237.62,237.58,6.61]
[1758310858201,11.3874805,237.62,237.57,3.7862]
[1758310858402,6.66758075,237.62,237.58,6.8]
[1758310858600,6.66758075,237.62,237.57,3.7862]
[1758310858995,6.66758075,237.62,237.58,6.8]
[1758310859195,6.66758075,237.62,237.57,3.7862]
[1758310859496,6.66758075,237.62,237.58,6.61]
[1758310860198,6.66758075,237.62,237.57,3.7862]
[1758310860505,4.7474805,237.62,237.57,3.7862]
[1758310861001,6.69,237.61,237.58,6.61]
[1758310861196,6.69,237.61,237.55,10.3966]
[1758310861400,11.40989975,237.61,237.55,10.3966]
[1758310861598,6.69,237.59,237.55,3.7866]
[1758310861802,11.40989975,237.59,237.53,3.7869]
[1758310862005,11.40989975,237.59,237.52,109.09]
[1758310862207,11.40989975,237.59,237.52,6.61]
[1758310862602,0.02797142,237.58,237.52,10.397]
[1758310863197,6.69,237.56,237.52,10.397]
[1758310863404,6.69,237.56,237.53,6.61]
[1758310866908,0.02797142,237.58,237.38,58.9456]
[1758310866909,6.69,237.53,237.49,6.61]
[1758310867402,1.4815389,237.54,237.49,6.61]
[1758310867603,1.4815389,237.51,237.45,6.61]
[1758310867807,8.1715389,237.51,237.45,6.61]
[1758310868207,6.69,237.49,237.45,6.61]
[1758310870206,124.0,237.48,237.45,6.61]
[1758310870805,130.69,237.48,237.45,6.61]
[1758310873213,124.0,237.48,237.46,6.61]
[1758310873714,0.02931407,237.5,237.43,102.48]
[1758310874013,0.02931407,237.5,237.44,6.61]
[1758310874315,124.02931407,237.5,237.44,6.61]
[1758310874610,124.02931407,237.5,237.43,102.48]
[1758310874611,130.71931407,237.5,237.46,6.61]
[1758310875014,124.02931407,237.5,237.46,6.61]
[1758310875207,6.69,237.49,237.46,6.61]
[1758310875603,124.02931407,237.5,237.45,3.7882]
[1758310875809,6.69,237.49,237.45,10.3982]
[1758310876209,6.69,237.49,237.46,6.61]
[1758310877410,130.71931407,237.5,237.46,10.3979]
[1758310877916,130.71931407,237.5,237.43,112.8784]
[1758310878616,130.71931407,237.5,237.44,3.7882]
[1758310882515,6.69,237.48,237.43,109.11]
[1758310882818,1.4815389,237.49,237.43,109.11]
[1758310883215,6.69,237.48,237.43,109.11]
[1758310883422,1.4815389,237.49,237.43,109.11]
[1758310883616,6.69,237.48,237.43,109.11]
[1758310883818,1.4815389,237.49,237.43,109.11]
[1758310884011,6.69,237.48,237.43,109.11]
[1758310884216,1.4815389,237.49,237.43,6.61]
[1758310884619,1.4815389,237.49,237.3,58.9653]
[1758310884620,6.69,237.45,237.4,3.789]
[1758310884819,1.4815389,237.46,237.4,102.5]
[1758310885019,6.69,237.45,237.37,6.61]
[1758310885216,6.69,237.45,237.38,106.2892]
[1758310885417,6.72064401,237.45,237.38,106.2892]
[1758310886021,0.03064401,237.45,237.4,3.789]
[1758310886527,6.69,237.44,237.4,3.789]
[1758310886922,0.03064401,237.45,237.37,10.3994]
[1758310886923,1.4815389,237.43,237.37,10.3994]
[1758310887124,6.69,237.42,237.37,10.3994]
[1758310887321,1.4815389,237.43,237.37,10.3994]
[1758310887522,8.1715389,237.43,237.37,112.8994]
[1758310887920,1.4815389,237.43,237.37,106.2894]
[1758310888121,1.4815389,237.43,237.37,3.7894]
[1758310888524,6.8,237.42,237.37,3.7894]
[1758310888730,1.4815389,237.43,237.37,3.7894]
[1758310888926,0.03064401,237.45,237.36,102.52]
[1758310888927,1.4815389,237.4,237.36,102.52]
[1758310889129,6.8,237.39,237.34,10.3999]
[1758310889331,8.2815389,237.4,237.34,3.7899]
[1758310889630,8.2815389,237.4,237.34,106.3099]
[1758310889830,6.8,237.38,237.34,10.8299]
[1758310890129,6.8,237.38,237.35,7.04]
[1758310890530,6.8,237.38,237.34,106.3099]
[1758310891033,0.03166654,237.39,237.34,113.3499]
[1758310891229,6.8,237.38,237.34,113.3499]
[1758310891629,6.8,237.38,237.34,7.04]
[1758310891821,0.03166654,237.39,237.33,102.52]
[1758310892329,1.4815389,237.37,237.31,322.0904]
[1758310892627,6.8,237.36,237.32,109.56]
[1758310893129,6.8,237.36,237.32,7.04]
[1758310893432,1.4815389,237.37,237.32,7.04]
[1758310893620,1.4815389,237.37,237.31,102.52]
[1758310893828,6.8,237.37,237.31,102.52]
[1758310897527,6.8,237.38,237.32,3.7903]
[1758310899231,6.8,237.38,237.31,109.56]
[1758310900134,6.8,237.38,237.31,7.04]
[1758310902036,0.03166654,237.39,237.31,7.04]
[1758310902229,0.03166654,237.39,237.36,10.8295]
[1758310902437,6.83166654,237.39,237.36,10.8295]
[1758310902637,0.03166654,237.39,237.36,3.7895]
[1758310903232,0.03166654,237.39,237.37,7.04]
[1758310906038,0.03166654,237.39,237.36,3.7895]
[1758310906241,0.03166654,237.39,237.37,7.04]
[1758310906737,0.03166654,237.39,237.36,3.7895]
[1758310907734,0.03166654,237.39,237.37,7.04]
[1758310907936,0.03166654,237.39,237.36,3.7895]
[1758310908135,0.03166654,237.39,237.38,7.04]
[1758310921474,0.03166654,237.39,237.34,3.7898]
[1758310921658,9.25053405,237.38,237.25,12.41860808]
[1758310921956,6.93,237.37,237.3,102.5]
[1758310922754,6.93,237.37,237.31,3.7903]
[1758310924757,11.64989975,237.37,237.31,3.7903]
[1758310925159,4.71989975,237.36,237.3,102.52]
[1758310925351,6.93,237.33,237.16,6.91]
[1758310925559,2.32053405,237.34,237.15,59.0032]
[1758310925560,9.25053405,237.3,237.18,6.91]
[1758310925761,9.25053405,237.3,237.23,3.7917]
[1758310926061,0.02886141,237.26,237.24,102.58]
[1758310926655,0.02886141,237.26,237.24,109.49]
[1758310927161,0.02886141,237.26,237.25,3.7914]
[1758310927958,0.02886141,237.26,237.25,10.7014]
[1758310931763,6.93,237.34,237.27,3.791]
[1758310931958,6.93,237.34,237.28,109.51]
[1758310933061,4.71989975,237.35,237.29,0.02916607]
[1758310933357,11.64989975,237.35,237.29,0.02916607]
[1758310934458,6.93,237.35,237.31,6.91]
[1758310934663,4.71989975,237.38,237.32,102.6]
[1758310934963,6.93,237.36,237.32,102.6]
[1758310935164,6.93,237.36,237.32,109.51]
[1758310935470,6.93,237.38,237.32,113.3003]
[1758310935660,11.64989975,237.38,237.32,113.3003]
[1758310935859,6.93,237.38,237.32,113.3003]
[1758310936565,11.64989975,237.38,237.32,113.3003]
[1758310936863,6.93,237.38,237.32,113.3003]
[1758310937063,4.71989975,237.41,237.33,6.91]
[1758310937357,11.64989975,237.42,237.33,6.91]
[1758310937563,4.71989975,237.41,237.33,10.7]
[1758310937964,4.71989975,237.4,237.35,0.03043546]
[1758310938165,11.64989975,237.4,237.36,102.6]
[1758310938866,6.93,237.4,237.37,6.91]
[1758310939267,6.93,237.4,237.37,10.6995]
[1758310939462,4.71989975,237.42,237.37,3.7895]
[1758310939966,6.93,237.44,237.39,10.6992]
[1758310940161,11.64989975,237.44,237.4,102.6]
[1758310940557,6.93,237.43,237.4,102.6]
[1758310941062,4.71989975,237.44,237.4,102.6]
[1758310941268,6.93,237.43,237.4,102.6]
[1758310941566,6.93,237.42,237.4,102.6]
[1758310942567,11.64989975,237.44,237.4,102.6]
[1758310944271,4.71989975,237.45,237.4,102.6]
[1758310944569,6.93,237.43,237.4,102.6]
[1758310945670,6.93,237.43,237.39,6.9392849]
[1758310947267,6.93,237.43,237.4,6.91]
[1758310947669,46.84469883,240.15,237.4,6.91]
[1758310947670,4.71989975,237.46,237.4,6.91]
[1758310947863,11.64989975,237.49,237.4,6.91]
[1758310948270,135.64989975,237.49,237.42,0.02971121]
[1758310948573,130.93,237.49,237.43,102.66]
[1758310949269,130.93,237.49,237.42,0.02971121]
[1758310949468,130.93,237.49,237.42,102.70971121]
[1758310949769,130.93,237.49,237.42,0.02971121]
[1758310949974,130.93,237.49,237.42,102.68971121]
[1758310950368,130.93,237.49,237.42,109.88971121]
[1758310950566,130.93,237.49,237.42,113.67841121]
[1758310951773,130.93,237.49,237.42,11.01841121]
[1758310951962,130.93,237.49,237.42,113.65841121]
[1758310955472,130.93,237.49,237.42,109.80971121]
[1758310961678,130.93,237.49,237.42,113.59831121]
[1758310962992,6.78,237.48,237.45,7.2]
[1758310963282,8.26352226,237.52,237.45,7.2]
[1758310963680,124.0,237.51,237.45,7.2]
[1758310964285,6.78,237.52,237.45,7.2]
[1758310964890,4.71989975,237.56,237.49,7.2]
[1758310965090,11.49989975,237.57,237.49,109.74]
[1758310965592,6.78,237.55,237.51,0.02823204]
[1758310965791,6.78,237.55,237.51,7.22823204]
[1758310965998,6.78,237.55,237.51,0.02823204]
[1758310966486,1.48352226,237.55,237.51,0.02823204]
[1758310966691,8.26352226,237.52,237.51,0.02823204]
[1758310971093,6.78,237.52,237.51,0.02823204]
[1758310971390,1.48352226,237.55,237.51,7.22823204]
[1758310971391,6.78,237.55,237.51,7.22823204]
[1758310971785,128.71989975,237.56,237.51,7.22823204]
[1758310971989,6.78,237.55,237.52,7.2]
[1758310973497,128.71989975,237.57,237.51,7.22823204]
[1758310973498,130.78,237.57,237.51,7.22823204]
[1758310974998,130.78,237.57,237.51,11.01533204]
[1758310977392,135.49989975,237.57,237.51,11.01533204]
[1758310978001,130.78,237.57,237.51,11.01533204]
[1758310978196,135.49989975,237.57,237.51,11.01533204]
[1758310978397,130.78,237.57,237.51,11.01533204]
[1758310978598,135.49989975,237.57,237.51,11.01533204]
[1758310978798,130.78,237.57,237.51,11.01533204]
[1758310979098,135.49989975,237.57,237.51,11.01533204]
[1758310980699,4.71989975,237.56,237.51,11.01533204]
[1758310980901,6.66,237.55,237.51,11.01533204]
[1758310981801,4.71989975,237.56,237.51,11.01533204]
[1758310982299,6.66,237.55,237.51,11.01533204]
[1758310983193,4.71989975,237.56,237.51,0.02823204]
[1758310983397,4.71989975,237.55,237.51,0.02823204]
[1758310983802,128.71989975,237.55,237.51,0.02823204]
[1758310983994,6.66,237.54,237.51,0.02823204]
[1758310984591,4.71989975,237.55,237.51,0.02823204]
[1758310984793,6.66,237.54,237.51,6.72823204]
[1758310986106,6.66,237.54,237.21,9.3683813]
[1758310986107,8.50699975,237.52,237.4,19.17018819]
[1758310986295,6.19694761,237.51,237.41,102.48]
[1758310986494,6.66,237.49,237.41,102.48]
[1758310986804,4.71342535,237.48,237.41,102.48]
[1758310987204,6.66,237.47,237.4,109.18]
[1758310987506,6.66,237.45,237.4,102.48]
[1758310987701,6.66,237.46,237.4,102.48]
[1758310988800,6.66,237.46,237.39,112.9891]
[1758310990406,11.37342535,237.46,237.39,112.9891]
[1758310991006,6.66,237.46,237.39,112.9891]
[1758310991207,11.37342535,237.46,237.39,112.9891]
[1758310992308,135.37342535,237.46,237.39,112.9891]
[1758310992903,135.37342535,237.46,237.39,109.2]
[1758310993312,4.71342535,237.45,237.39,109.2]
[1758310993713,135.37342535,237.46,237.39,109.2]
[1758310995405,11.37342535,237.46,237.39,112.989]
[1758310995612,6.66,237.46,237.39,112.989]
[1758310996622,0.03007739,237.47,237.4,6.7]
[1758310997716,0.03007739,237.47,237.4,8.18352226]
[1758310997916,0.03007739,237.47,237.42,3.7887]
[1758310998615,0.03007739,237.47,237.43,6.7]
[1758310998811,0.03007739,237.47,237.45,6.7]
[1758311000415,0.03007739,237.47,237.44,10.4884]
[1758311000719,0.03007739,237.47,237.45,102.5]
[1758311001720,0.03007739,237.47,237.45,109.2]
[1758311001916,0.03007739,237.47,237.46,6.7]
[1758311003127,0.03007739,237.47,237.45,102.5]
[1758311004129,6.69007739,237.47,237.45,102.5]
[1758311004532,11.37342535,237.46,237.35,1.48352226]
[1758311004742,11.37342535,237.46,237.37,6.7]
[1758311005725,11.37342535,237.46,237.38,3.7893]
[1758311006529,15.16162535,237.46,237.38,3.7893]
[1758311007431,15.16162535,237.46,237.37,6.7]
[1758311007432,3.7884,237.44,237.37,6.7]
[1758311007632,6.66,237.43,237.4,6.7]
[1758311009733,6.66,237.43,237.4,10.489]
[1758311009938,0.02959881,237.44,237.41,1.48352226]
[1758311010528,0.02959881,237.44,237.42,6.84]
[1758311010736,0.02959881,237.44,237.41,6.84]
[1758311011236,0.02959881,237.44,237.4,3.789]
[1758311011431,0.02959881,237.44,237.41,6.84]
[1758311011627,0.02959881,237.44,237.4,3.789]
[1758311011833,0.02959881,237.44,237.41,6.84]
[1758311012035,0.02959881,237.44,237.41,3.7887]
[1758311012737,0.02959881,237.44,237.42,6.84]
[1758311013237,0.02959881,237.44,237.41,3.7887]
[1758311013629,0.02959881,237.44,237.42,6.84]
[1758311013834,0.02959881,237.44,237.41,3.7887]
[1758311014332,0.02959881,237.44,237.42,6.84]
[1758311014537,0.02959881,237.44,237.41,3.7887]
[1758311014831,0.02959881,237.44,237.43,6.84]
[1758311016237,3.02199181,237.44,237.43,6.84]
[1758311016940,3.02172733,237.44,237.43,6.84]
[1758311017137,4.71342535,237.5,237.43,6.84]
[1758311017336,4.71342535,237.5,237.45,6.84]
[1758311017527,4.71342535,237.5,237.44,102.5]
[1758311017731,4.71342535,237.5,237.45,6.84]
[1758311018135,4.71342535,237.5,237.45,3.7882]
[1758311018345,6.66,237.49,237.45,10.6282]
[1758311018533,6.66,237.49,237.45,3.7882]
[1758311018738,6.66,237.49,237.46,6.84]
[1758311020133,4.71342535,237.5,237.45,3.7882]
[1758311020450,7.07984963,237.53,237.41,6.86833209]
[1758311020451,6.66,237.45,237.41,6.86833209]
[1758311020741,6.66,237.44,237.41,60.10833209]
[1758311020940,128.71342535,237.45,237.41,60.10833209]
[1758311021234,6.66,237.43,237.41,60.10833209]
[1758311021440,4.71342535,237.44,237.41,66.94833209]
[1758311021838,4.71342535,237.45,237.41,66.94833209]
[1758311022339,4.71342535,237.44,237.41,66.94833209]
[1758311022542,4.71342535,237.44,237.41,6.86833209]
[1758311022740,4.71342535,237.44,237.41,109.34833209]
[1758311024038,11.37342535,237.44,237.41,109.34833209]
[1758311025642,15.16182535,237.44,237.41,102.50833209]
[1758311025842,6.66,237.43,237.41,0.02833209]
[1758311026141,11.37342535,237.43,237.41,102.52833209]
[1758311026932,4.71342535,237.43,237.41,102.52833209]
[1758311027138,4.71342535,237.43,237.42,6.84]
[1758311029041,7.69551713,237.43,237.42,6.84]
[1758311029447,7.70837568,237.43,237.42,6.84]
[1758311030337,2.98209178,237.43,237.41,0.02833209]
[1758311030541,134.86794963,237.46,237.41,0.02833209]
[1758311030542,6.66,237.45,237.42,102.5]
[1758311030738,6.66,237.43,237.42,102.5]
[1758311030942,6.66,237.42,237.41,0.02833209]
[1758311031142,16.7232742,237.42,237.35,6.84]